[Event "*** Titled Tuesday Blitz"]
[Site "Chess.com"]
[Date "2020.04.07"]
[Round "8"]
[White "kallerotmg"]
[Black "vaps"]
[Result "1-0"]
[WhiteElo "2188"]
[BlackElo "1969"]
[TimeControl "180+1"]
[EndTime "14:33:50 PDT"]
[Termination "kallerotmg won by resignation"]

1. e4 {[%clk 0:02:56.2]} 1... c5 {[%clk 0:02:58.9]} 2. Nf3 {[%clk 0:02:54.3]}
2... e6 {[%clk 0:02:59.3]} 3. Nc3 {[%clk 0:02:51.5]} 3... Nc6 {[%clk 0:02:59.3]}
4. d4 {[%clk 0:02:48.6]} 4... cxd4 {[%clk 0:02:57.8]} 5. Nxd4 {[%clk 0:02:48.9]}
5... Qc7 {[%clk 0:02:57.8]} 6. g3 {[%clk 0:02:43.9]} 6... a6 {[%clk 0:02:54.3]}
7. Bg2 {[%clk 0:02:42.2]} 7... Nf6 {[%clk 0:02:54.7]} 8. O-O {[%clk 0:02:41.5]}
8... Nxd4 {[%clk 0:02:44.7]} 9. Qxd4 {[%clk 0:02:37]} 9... Bc5 {[%clk
0:02:43.9]} 10. Bf4 {[%clk 0:02:29]} 10... d6 {[%clk 0:02:40.1]} 11. Qd2 {[%clk
0:01:55.6]} 11... h6 {[%clk 0:02:39]} 12. Rad1 {[%clk 0:01:50.1]} 12... Ke7
{[%clk 0:02:09.8]} 13. Na4 {[%clk 0:01:44.5]} 13... e5 {[%clk 0:01:32.4]} 14.
Be3 {[%clk 0:01:39.8]} 14... Bxe3 {[%clk 0:01:28.5]} 15. Qxe3 {[%clk 0:01:33.1]}
15... b5 {[%clk 0:01:23.7]} 16. Nb6 {[%clk 0:01:31]} 16... Rb8 {[%clk
0:01:23.3]} 17. Nd5+ {[%clk 0:01:14.8]} 17... Nxd5 {[%clk 0:01:21.4]} 18. exd5
{[%clk 0:01:10.6]} 18... Bf5 {[%clk 0:01:01.4]} 19. f4 {[%clk 0:01:08.1]} 19...
Bg4 {[%clk 0:00:38.3]} 20. Rde1 {[%clk 0:00:49.8]} 20... Qb6 {[%clk 0:00:23.8]}
21. Qxb6 {[%clk 0:00:44.1]} 21... Rxb6 {[%clk 0:00:24.7]} 22. fxe5 {[%clk
0:00:43.1]} 22... dxe5 {[%clk 0:00:24.4]} 23. Rxe5+ {[%clk 0:00:41.9]} 23... Kd6
{[%clk 0:00:23.7]} 24. Re3 {[%clk 0:00:40.6]} 24... f6 {[%clk 0:00:21.3]} 25.
Rfe1 {[%clk 0:00:36.1]} 25... Rc8 {[%clk 0:00:17.7]} 26. Re7 {[%clk 0:00:30.4]}
26... g5 {[%clk 0:00:17.4]} 27. c3 {[%clk 0:00:22.8]} 27... Bf5 {[%clk
0:00:15.4]} 28. Rf7 {[%clk 0:00:20.6]} 28... Kc5 {[%clk 0:00:14]} 29. Rf1 {[%clk
0:00:19.9]} 29... Bb1 {[%clk 0:00:11.9]} 30. R1xf6 {[%clk 0:00:19.9]} 30... Bxa2
{[%clk 0:00:10.8]} 31. b4+ {[%clk 0:00:16.6]} 1-0

[Event "*** Titled Tuesday Blitz"]
[Site "Chess.com"]
[Date "2020.04.07"]
[Round "8"]
[White "MikeSailer"]
[Black "SanchezKelvin"]
[Result "0-1"]
[WhiteElo "2063"]
[BlackElo "2328"]
[TimeControl "180+1"]
[EndTime "14:33:51 PDT"]
[Termination "SanchezKelvin won by checkmate"]

1. d4 {[%clk 0:03:00.9]} 1... d5 {[%clk 0:02:59]} 2. Bf4 {[%clk 0:02:59.2]} 2...
Nf6 {[%clk 0:02:58.7]} 3. e3 {[%clk 0:02:59.4]} 3... c5 {[%clk 0:02:58.6]} 4.
Nf3 {[%clk 0:02:58.7]} 4... Nc6 {[%clk 0:02:58.5]} 5. c3 {[%clk 0:02:57]} 5...
Qb6 {[%clk 0:02:57.8]} 6. Qb3 {[%clk 0:02:43.6]} 6... c4 {[%clk 0:02:57.5]} 7.
Qc2 {[%clk 0:02:43.1]} 7... Bf5 {[%clk 0:02:57.2]} 8. Qc1 {[%clk 0:02:42.4]}
8... e6 {[%clk 0:02:57]} 9. Be2 {[%clk 0:02:42.2]} 9... Qa5 {[%clk 0:02:55.4]}
10. O-O {[%clk 0:02:38.3]} 10... Be7 {[%clk 0:02:55.4]} 11. Nbd2 {[%clk
0:02:36.5]} 11... O-O {[%clk 0:02:54.3]} 12. Ne5 {[%clk 0:02:31.3]} 12... Rfc8
{[%clk 0:02:53.1]} 13. Ndf3 {[%clk 0:02:28.7]} 13... Nd8 {[%clk 0:02:50.7]} 14.
h3 {[%clk 0:02:21.6]} 14... Ne4 {[%clk 0:02:49.9]} 15. Nd2 {[%clk 0:02:17.1]}
15... Nf6 {[%clk 0:02:48.1]} 16. Re1 {[%clk 0:01:58.6]} 16... b5 {[%clk
0:02:47.4]} 17. Bf3 {[%clk 0:01:55.2]} 17... Bf8 {[%clk 0:02:37.9]} 18. e4
{[%clk 0:01:53.3]} 18... Bg6 {[%clk 0:02:37.6]} 19. exd5 {[%clk 0:01:49.4]}
19... Nxd5 {[%clk 0:02:35.4]} 20. Bg3 {[%clk 0:01:44.1]} 20... b4 {[%clk
0:02:32]} 21. Bxd5 {[%clk 0:01:34.4]} 21... exd5 {[%clk 0:02:28.4]} 22. Nxg6
{[%clk 0:01:33.4]} 22... hxg6 {[%clk 0:02:25.8]} 23. Nf3 {[%clk 0:01:26.3]}
23... Ne6 {[%clk 0:02:21.9]} 24. Ne5 {[%clk 0:01:24]} 24... bxc3 {[%clk
0:02:18.7]} 25. bxc3 {[%clk 0:01:23.2]} 25... Ba3 {[%clk 0:02:10.8]} 26. Qd2
{[%clk 0:01:17.9]} 26... Nf8 {[%clk 0:02:10.3]} 27. Rab1 {[%clk 0:01:13.9]}
27... Qa6 {[%clk 0:02:08.2]} 28. Qf4 {[%clk 0:01:10.6]} 28... Qf6 {[%clk
0:02:03.2]} 29. Qxf6 {[%clk 0:01:08.4]} 29... gxf6 {[%clk 0:02:02.9]} 30. Ng4
{[%clk 0:01:05.5]} 30... Rc6 {[%clk 0:01:56.5]} 31. Ne3 {[%clk 0:01:04.7]} 31...
Rd8 {[%clk 0:01:49.5]} 32. Rb7 {[%clk 0:01:01.7]} 32... Ra6 {[%clk 0:01:45.5]}
33. Reb1 {[%clk 0:00:53.7]} 33... Bd6 {[%clk 0:01:38.6]} 34. Bxd6 {[%clk
0:00:52.5]} 34... Rdxd6 {[%clk 0:01:38]} 35. R1b2 {[%clk 0:00:49.4]} 35... Ne6
{[%clk 0:01:35]} 36. Nc2 {[%clk 0:00:43.1]} 36... Nf4 {[%clk 0:01:26.6]} 37. Kf1
{[%clk 0:00:40.8]} 37... Nd3 {[%clk 0:01:25.9]} 38. R2b5 {[%clk 0:00:38.6]}
38... Rxa2 {[%clk 0:01:22.8]} 39. Nb4 {[%clk 0:00:37.3]} 39... Nxb4 {[%clk
0:01:21.4]} 40. Rxb4 {[%clk 0:00:35.7]} 40... Ra3 {[%clk 0:01:20.3]} 41. Rc7
{[%clk 0:00:30.1]} 41... Re6 {[%clk 0:01:13.8]} 42. g3 {[%clk 0:00:29.2]} 42...
Re8 {[%clk 0:01:08.8]} 43. Rb5 {[%clk 0:00:21.5]} 43... Rxc3 {[%clk 0:01:07.7]}
44. Rxa7 {[%clk 0:00:20.7]} 44... Rc1+ {[%clk 0:01:06.8]} 45. Kg2 {[%clk
0:00:20.1]} 45... Rc2 {[%clk 0:01:07]} 46. Rxd5 {[%clk 0:00:19.4]} 46... Ree2
{[%clk 0:01:06.1]} 47. h4 {[%clk 0:00:10.3]} 47... Rxf2+ {[%clk 0:01:01.8]} 48.
Kh3 {[%clk 0:00:10.6]} 48... f5 {[%clk 0:01:01.9]} 49. g4 {[%clk 0:00:08.5]}
49... Rf3# {[%clk 0:01:01.3]} 0-1

[Event "*** Titled Tuesday Blitz"]
[Site "Chess.com"]
[Date "2020.04.07"]
[Round "8"]
[White "stolencandy13"]
[Black "Vuk2000"]
[Result "0-1"]
[WhiteElo "2433"]
[BlackElo "2627"]
[TimeControl "180+1"]
[EndTime "14:33:53 PDT"]
[Termination "Vuk2000 won by resignation"]

1. e4 {[%clk 0:03:00.9]} 1... e6 {[%clk 0:02:59.6]} 2. d4 {[%clk 0:03:00.7]}
2... d5 {[%clk 0:03:00.5]} 3. Nd2 {[%clk 0:03:01.3]} 3... Be7 {[%clk 0:02:59.5]}
4. Bd3 {[%clk 0:03:00.8]} 4... c5 {[%clk 0:02:57.5]} 5. exd5 {[%clk 0:02:58.8]}
5... exd5 {[%clk 0:02:56.4]} 6. dxc5 {[%clk 0:02:58.4]} 6... Bxc5 {[%clk
0:02:55.8]} 7. Ngf3 {[%clk 0:02:59]} 7... Nc6 {[%clk 0:02:55.7]} 8. O-O {[%clk
0:02:58.6]} 8... Nge7 {[%clk 0:02:56.2]} 9. Nb3 {[%clk 0:02:58.5]} 9... Bd6
{[%clk 0:02:51.1]} 10. Nfd4 {[%clk 0:02:57.3]} 10... O-O {[%clk 0:02:49.8]} 11.
c3 {[%clk 0:02:53.1]} 11... Ne5 {[%clk 0:02:46.2]} 12. Bc2 {[%clk 0:02:45.8]}
12... a5 {[%clk 0:02:44.3]} 13. a4 {[%clk 0:02:44.9]} 13... b6 {[%clk 0:02:42]}
14. Bf4 {[%clk 0:02:40.1]} 14... Ba6 {[%clk 0:02:40.5]} 15. Re1 {[%clk
0:02:37.7]} 15... Nc4 {[%clk 0:02:17.2]} 16. Bxd6 {[%clk 0:02:05.2]} 16... Qxd6
{[%clk 0:02:18.1]} 17. Qh5 {[%clk 0:02:04.2]} 17... Ng6 {[%clk 0:02:15.5]} 18.
Nf5 {[%clk 0:01:58.3]} 18... Qf6 {[%clk 0:02:14.2]} 19. Rab1 {[%clk 0:01:53.9]}
19... Rfe8 {[%clk 0:02:06.5]} 20. Bd3 {[%clk 0:01:39.5]} 20... h6 {[%clk
0:01:46.6]} 21. Bxc4 {[%clk 0:01:22.9]} 21... Bxc4 {[%clk 0:01:43.7]} 22. Nbd4
{[%clk 0:01:22]} 22... Bd3 {[%clk 0:01:42.9]} 23. Rbd1 {[%clk 0:01:18.6]} 23...
Re5 {[%clk 0:01:23.3]} 24. Rxe5 {[%clk 0:01:06.4]} 24... Qxe5 {[%clk 0:01:24.2]}
25. Nxh6+ {[%clk 0:00:51.8]} 25... gxh6 {[%clk 0:01:18.1]} 26. Qxe5 {[%clk
0:00:52.3]} 26... Nxe5 {[%clk 0:01:17.4]} 27. f4 {[%clk 0:00:52.9]} 27... Nc4
{[%clk 0:01:14.5]} 28. Rxd3 {[%clk 0:00:51.4]} 28... Nxb2 {[%clk 0:01:14.7]} 29.
Rg3+ {[%clk 0:00:51]} 29... Kf8 {[%clk 0:01:12]} 30. Nf5 {[%clk 0:00:49.6]}
30... Nxa4 {[%clk 0:01:11.7]} 31. Rh3 {[%clk 0:00:37.8]} 31... Kg8 {[%clk
0:00:53.5]} 32. Rg3+ {[%clk 0:00:35.8]} 32... Kh7 {[%clk 0:00:42.2]} 33. Rg7+
{[%clk 0:00:34.3]} 33... Kh8 {[%clk 0:00:42.3]} 34. Rxf7 {[%clk 0:00:34.1]}
34... Nxc3 {[%clk 0:00:42.2]} 35. Nxh6 {[%clk 0:00:27.6]} 35... a4 {[%clk
0:00:40.6]} 36. Ng4 {[%clk 0:00:25.6]} 36... Ne4 {[%clk 0:00:38.9]} 37. Ne5
{[%clk 0:00:14.1]} 37... a3 {[%clk 0:00:35.1]} 38. Ng6+ {[%clk 0:00:13.2]} 38...
Kg8 {[%clk 0:00:34.2]} 39. Rb7 {[%clk 0:00:12.4]} 39... a2 {[%clk 0:00:30.5]}
40. h3 {[%clk 0:00:12.6]} 40... a1=Q+ {[%clk 0:00:29.7]} 41. Kh2 {[%clk
0:00:13.5]} 41... Ra7 {[%clk 0:00:26.2]} 42. Ne7+ {[%clk 0:00:12.1]} 42... Kf7
{[%clk 0:00:24]} 0-1

[Event "*** Titled Tuesday Blitz"]
[Site "Chess.com"]
[Date "2020.04.07"]
[Round "8"]
[White "H3nriqueTV"]
[Black "eightbyeightchess"]
[Result "0-1"]
[WhiteElo "2169"]
[BlackElo "2330"]
[TimeControl "180+1"]
[EndTime "14:33:57 PDT"]
[Termination "eightbyeightchess won by checkmate"]

1. b3 {[%clk 0:00:28.7]} 1... d5 {[%clk 0:02:24.3]} 2. Bb2 {[%clk 0:00:29.6]}
2... Nf6 {[%clk 0:02:23.9]} 3. e3 {[%clk 0:00:30.5]} 3... Nc6 {[%clk 0:02:00.8]}
4. Nf3 {[%clk 0:00:29.3]} 4... Bg4 {[%clk 0:01:59.9]} 5. Bb5 {[%clk 0:00:29.8]}
5... e6 {[%clk 0:01:48.4]} 6. h3 {[%clk 0:00:29.2]} 6... Bh5 {[%clk 0:01:46.1]}
7. g4 {[%clk 0:00:28.8]} 7... Bg6 {[%clk 0:01:45.5]} 8. Ne5 {[%clk 0:00:29.3]}
8... Nd7 {[%clk 0:01:39]} 9. Nxc6 {[%clk 0:00:28.7]} 9... bxc6 {[%clk
0:01:28.8]} 10. Bxc6 {[%clk 0:00:29.6]} 10... Rb8 {[%clk 0:01:28.7]} 11. d3
{[%clk 0:00:27.3]} 11... h5 {[%clk 0:01:16.7]} 12. Nd2 {[%clk 0:00:23.7]} 12...
hxg4 {[%clk 0:00:47.5]} 13. Qxg4 {[%clk 0:00:24.6]} 13... Rb6 {[%clk 0:00:44.3]}
14. Qa4 {[%clk 0:00:19.1]} 14... Bd6 {[%clk 0:00:31.2]} 15. O-O-O {[%clk
0:00:18.5]} 15... Ke7 {[%clk 0:00:18.4]} 16. Bd4 {[%clk 0:00:16.9]} 16... Rb4
{[%clk 0:00:16.8]} 17. Qxa7 {[%clk 0:00:14.7]} 17... Nb8 {[%clk 0:00:16.6]} 18.
Ba4 {[%clk 0:00:12.2]} 18... e5 {[%clk 0:00:15]} 19. Bc3 {[%clk 0:00:12.1]}
19... Rb6 {[%clk 0:00:13.2]} 20. Qa5 {[%clk 0:00:10.3]} 20... Qc8 {[%clk
0:00:13.2]} 21. Qxd5 {[%clk 0:00:10.4]} 21... Qa6 {[%clk 0:00:11.9]} 22. Kb1
{[%clk 0:00:09.9]} 22... Qxa4 {[%clk 0:00:11.8]} 23. Nc4 {[%clk 0:00:08.6]}
23... Rb5 {[%clk 0:00:09.9]} 24. Qf3 {[%clk 0:00:07.3]} 24... Qa6 {[%clk
0:00:09.1]} 25. d4 {[%clk 0:00:05.2]} 25... e4 {[%clk 0:00:08.9]} 26. Qg3 {[%clk
0:00:04.7]} 26... Bxg3 {[%clk 0:00:07.5]} 27. fxg3 {[%clk 0:00:05.1]} 27... Nc6
{[%clk 0:00:08.4]} 28. d5 {[%clk 0:00:05.2]} 28... Ra8 {[%clk 0:00:08.7]} 29. a4
{[%clk 0:00:04.3]} 29... Qxa4 {[%clk 0:00:08.8]} 30. Kc1 {[%clk 0:00:04.4]}
30... Rxb3 {[%clk 0:00:08.2]} 31. cxb3 {[%clk 0:00:03.8]} 31... Qxb3 {[%clk
0:00:09.1]} 32. dxc6 {[%clk 0:00:02.9]} 32... Qxc3+ {[%clk 0:00:09.1]} 33. Kb1
{[%clk 0:00:02.9]} 33... Ra1# {[%clk 0:00:10]} 0-1

[Event "*** Titled Tuesday Blitz"]
[Site "Chess.com"]
[Date "2020.04.07"]
[Round "8"]
[White "beccrajoy"]
[Black "Sneakiest_Of_Snakes"]
[Result "1-0"]
[WhiteElo "1806"]
[BlackElo "2106"]
[TimeControl "180+1"]
[EndTime "14:33:57 PDT"]
[Termination "beccrajoy won by checkmate"]

1. e4 {[%clk 0:03:00.9]} 1... c5 {[%clk 0:02:57.5]} 2. Nf3 {[%clk 0:03:00.6]}
2... d6 {[%clk 0:02:57.2]} 3. d4 {[%clk 0:03:01.5]} 3... cxd4 {[%clk 0:02:57.6]}
4. Nxd4 {[%clk 0:03:02.4]} 4... Nf6 {[%clk 0:02:57.9]} 5. Nc3 {[%clk 0:02:58.5]}
5... a6 {[%clk 0:02:57.6]} 6. Bg5 {[%clk 0:02:56.3]} 6... e6 {[%clk 0:02:57.7]}
7. f4 {[%clk 0:02:49.1]} 7... Qb6 {[%clk 0:02:57.2]} 8. Nb3 {[%clk 0:02:45]}
8... Nbd7 {[%clk 0:02:13.8]} 9. Qf3 {[%clk 0:02:41.3]} 9... Be7 {[%clk
0:02:10.8]} 10. O-O-O {[%clk 0:02:39.4]} 10... Qc7 {[%clk 0:02:04.8]} 11. Bd3
{[%clk 0:02:38.5]} 11... b5 {[%clk 0:02:04.4]} 12. Rhe1 {[%clk 0:02:35.8]} 12...
Bb7 {[%clk 0:01:53.1]} 13. Qe2 {[%clk 0:01:53.3]} 13... b4 {[%clk 0:01:49.4]}
14. Nd5 {[%clk 0:01:52.7]} 14... Nxd5 {[%clk 0:01:46.4]} 15. exd5 {[%clk
0:01:50.1]} 15... Bxd5 {[%clk 0:01:46.2]} 16. Bxe7 {[%clk 0:01:46.3]} 16... Kxe7
{[%clk 0:01:45.7]} 17. f5 {[%clk 0:01:46.3]} 17... Ne5 {[%clk 0:01:43.6]} 18.
Be4 {[%clk 0:01:35.8]} 18... Bxe4 {[%clk 0:01:39.3]} 19. Qxe4 {[%clk 0:01:34.6]}
19... a5 {[%clk 0:01:35.8]} 20. Qh4+ {[%clk 0:01:17.8]} 20... Kd7 {[%clk
0:01:19.9]} 21. Rxe5 {[%clk 0:01:15.1]} 21... Rhc8 {[%clk 0:01:09.7]} 22. fxe6+
{[%clk 0:01:07.5]} 22... fxe6 {[%clk 0:01:07.2]} 23. Nc5+ {[%clk 0:01:07]} 23...
Ke8 {[%clk 0:00:56.4]} 24. Rxe6+ {[%clk 0:01:01.7]} 24... Kf7 {[%clk 0:00:55]}
25. Qf4+ {[%clk 0:00:47.2]} 25... Kg8 {[%clk 0:00:51.7]} 26. Qc4 {[%clk
0:00:19.4]} 26... Kh8 {[%clk 0:00:39.9]} 27. Rde1 {[%clk 0:00:14.9]} 27... dxc5
{[%clk 0:00:31.7]} 28. Qe4 {[%clk 0:00:14.6]} 28... h6 {[%clk 0:00:30]} 29. Qg6
{[%clk 0:00:13.6]} 29... Qd7 {[%clk 0:00:27.8]} 30. Re7 {[%clk 0:00:12.1]} 30...
Rc6 {[%clk 0:00:07.8]} 31. Qxg7# {[%clk 0:00:11.3]} 1-0

[Event "*** Titled Tuesday Blitz"]
[Site "Chess.com"]
[Date "2020.04.07"]
[Round "8"]
[White "Caracternin123"]
[Black "LogoCzar"]
[Result "1-0"]
[WhiteElo "2570"]
[BlackElo "2417"]
[TimeControl "180+1"]
[EndTime "14:33:58 PDT"]
[Termination "Caracternin123 won by checkmate"]

1. d4 {[%clk 0:03:00.9]} 1... d5 {[%clk 0:03:00]} 2. Nf3 {[%clk 0:03:00]} 2...
Nf6 {[%clk 0:02:59.8]} 3. Bg5 {[%clk 0:02:59.5]} 3... Ne4 {[%clk 0:02:59.7]} 4.
Bh4 {[%clk 0:02:59.5]} 4... c5 {[%clk 0:02:59.9]} 5. e3 {[%clk 0:02:59.7]} 5...
Nc6 {[%clk 0:02:59.5]} 6. Nbd2 {[%clk 0:02:59.2]} 6... Bf5 {[%clk 0:02:55.8]} 7.
Nxe4 {[%clk 0:02:56.3]} 7... Bxe4 {[%clk 0:02:55.1]} 8. Bd3 {[%clk 0:02:48.8]}
8... Bxf3 {[%clk 0:02:52.5]} 9. Qxf3 {[%clk 0:02:49.2]} 9... cxd4 {[%clk
0:02:52]} 10. exd4 {[%clk 0:02:45.3]} 10... Nxd4 {[%clk 0:02:48.7]} 11. Qg4
{[%clk 0:02:45.2]} 11... Nc6 {[%clk 0:02:42.4]} 12. O-O-O {[%clk 0:02:42.4]}
12... Qa5 {[%clk 0:02:22.1]} 13. Kb1 {[%clk 0:02:38.1]} 13... e6 {[%clk
0:02:16.6]} 14. a3 {[%clk 0:02:19.7]} 14... Ne5 {[%clk 0:02:05.7]} 15. Qg3
{[%clk 0:02:16.1]} 15... Nxd3 {[%clk 0:02:02.3]} 16. Rxd3 {[%clk 0:02:17]} 16...
Rc8 {[%clk 0:01:43]} 17. f4 {[%clk 0:02:05.2]} 17... f5 {[%clk 0:01:19]} 18. Re1
{[%clk 0:01:33.4]} 18... Kf7 {[%clk 0:01:18.3]} 19. Qe3 {[%clk 0:01:19.2]} 19...
Qb6 {[%clk 0:01:09.8]} 20. Qe2 {[%clk 0:01:09.9]} 20... Bc5 {[%clk 0:01:03.4]}
21. g4 {[%clk 0:01:09.5]} 21... g6 {[%clk 0:00:58.5]} 22. Rb3 {[%clk 0:00:53.6]}
22... Qc6 {[%clk 0:00:52.7]} 23. Rxb7+ {[%clk 0:00:07.8]} 23... Qxb7 {[%clk
0:00:41.8]} 24. Qxe6+ {[%clk 0:00:08.3]} 24... Kf8 {[%clk 0:00:16.9]} 25. Qf6+
{[%clk 0:00:08]} 25... Kg8 {[%clk 0:00:15.1]} 26. Qe6+ {[%clk 0:00:08.2]} 26...
Kf8 {[%clk 0:00:13.8]} 27. gxf5 {[%clk 0:00:08.7]} 27... Bd4 {[%clk 0:00:11.1]}
28. b3 {[%clk 0:00:05.9]} 28... Kg7 {[%clk 0:00:09.4]} 29. f6+ {[%clk
0:00:05.3]} 29... Kh6 {[%clk 0:00:08.7]} 30. Bg5+ {[%clk 0:00:05.2]} 30... Kh5
{[%clk 0:00:07.8]} 31. Qh3# {[%clk 0:00:06.1]} 1-0

[Event "*** Titled Tuesday Blitz"]
[Site "Chess.com"]
[Date "2020.04.07"]
[Round "8"]
[White "ChristopherYoo"]
[Black "BillieKimbah"]
[Result "1-0"]
[WhiteElo "2675"]
[BlackElo "2841"]
[TimeControl "180+1"]
[EndTime "14:33:59 PDT"]
[Termination "ChristopherYoo won on time"]

1. e4 {[%clk 0:03:00.9]} 1... c5 {[%clk 0:02:59.6]} 2. d4 {[%clk 0:02:59.8]}
2... cxd4 {[%clk 0:02:59]} 3. c3 {[%clk 0:03:00.2]} 3... dxc3 {[%clk 0:02:59.2]}
4. Nxc3 {[%clk 0:03:00.2]} 4... Nc6 {[%clk 0:02:59.8]} 5. Nf3 {[%clk 0:03:00.5]}
5... e6 {[%clk 0:03:00.2]} 6. Bc4 {[%clk 0:03:00.7]} 6... a6 {[%clk 0:03:00.2]}
7. O-O {[%clk 0:03:00.5]} 7... Nge7 {[%clk 0:03:00.7]} 8. Bg5 {[%clk 0:02:56.1]}
8... Qc7 {[%clk 0:02:56.9]} 9. Rc1 {[%clk 0:01:31.7]} 9... Ng6 {[%clk
0:02:54.3]} 10. Nd5 {[%clk 0:00:58.2]} 10... exd5 {[%clk 0:02:48.7]} 11. exd5
{[%clk 0:00:37.9]} 11... Nce5 {[%clk 0:02:47.5]} 12. Bb3 {[%clk 0:00:32.7]}
12... Qd6 {[%clk 0:02:41]} 13. Nxe5 {[%clk 0:00:25.4]} 13... Nxe5 {[%clk
0:02:40.2]} 14. Re1 {[%clk 0:00:21]} 14... f6 {[%clk 0:02:32.9]} 15. f4 {[%clk
0:00:21.2]} 15... fxg5 {[%clk 0:02:22.1]} 16. fxe5 {[%clk 0:00:21.2]} 16... Qb6+
{[%clk 0:02:19.9]} 17. Kh1 {[%clk 0:00:21.6]} 17... Bb4 {[%clk 0:02:18.3]} 18.
d6 {[%clk 0:00:08.8]} 18... Bxe1 {[%clk 0:02:07.2]} 19. Qh5+ {[%clk 0:00:09]}
19... g6 {[%clk 0:02:06.8]} 20. Qxg5 {[%clk 0:00:05.3]} 20... Qd8 {[%clk
0:02:04.9]} 21. Qh6 {[%clk 0:00:05.5]} 21... Qh4 {[%clk 0:01:52.9]} 22. Qg7
{[%clk 0:00:05.6]} 22... Rf8 {[%clk 0:01:53.3]} 23. Bc4 {[%clk 0:00:02.7]} 23...
Bg3 {[%clk 0:01:44.1]} 24. h3 {[%clk 0:00:02.3]} 24... b5 {[%clk 0:01:00.2]} 25.
Rf1 {[%clk 0:00:02.5]} 25... Bf4 {[%clk 0:00:05.4]} 26. Rxf4 {[%clk 0:00:02.6]}
26... Rxf4 {[%clk 0:00:02.2]} 27. Qg8+ {[%clk 0:00:02.5]} 27... Rf8 {[%clk
0:00:02]} 28. Bf7+ {[%clk 0:00:03.4]} 1-0

[Event "*** Titled Tuesday Blitz"]
[Site "Chess.com"]
[Date "2020.04.07"]
[Round "8"]
[White "anon219"]
[Black "MartinCerveny"]
[Result "1-0"]
[WhiteElo "2807"]
[BlackElo "2634"]
[TimeControl "180+1"]
[EndTime "14:33:59 PDT"]
[Termination "anon219 won by resignation"]

1. e4 {[%clk 0:03:00.9]} 1... c5 {[%clk 0:02:59.8]} 2. Nf3 {[%clk 0:03:00.6]}
2... d6 {[%clk 0:03:00.1]} 3. Bb5+ {[%clk 0:02:59.7]} 3... Bd7 {[%clk
0:02:59.6]} 4. Bxd7+ {[%clk 0:02:59]} 4... Qxd7 {[%clk 0:03:00.5]} 5. c4 {[%clk
0:02:59.5]} 5... Nc6 {[%clk 0:02:56.4]} 6. Nc3 {[%clk 0:02:58.8]} 6... Nf6
{[%clk 0:02:56.3]} 7. d4 {[%clk 0:02:59]} 7... cxd4 {[%clk 0:02:56.3]} 8. Nxd4
{[%clk 0:02:59.9]} 8... Qg4 {[%clk 0:02:56.2]} 9. Qxg4 {[%clk 0:02:57.9]} 9...
Nxg4 {[%clk 0:02:56.7]} 10. Nxc6 {[%clk 0:02:58.1]} 10... bxc6 {[%clk
0:02:57.6]} 11. Bf4 {[%clk 0:02:50.5]} 11... g5 {[%clk 0:02:56.4]} 12. Bxg5
{[%clk 0:02:46.5]} 12... Bg7 {[%clk 0:02:55.3]} 13. Bd2 {[%clk 0:02:41.6]} 13...
Rg8 {[%clk 0:02:41.8]} 14. Ke2 {[%clk 0:02:30.4]} 14... Bd4 {[%clk 0:02:27.9]}
15. Be1 {[%clk 0:01:31.5]} 15... Ne5 {[%clk 0:02:04.1]} 16. g3 {[%clk
0:01:28.4]} 16... Nxc4 {[%clk 0:01:59.9]} 17. Kd3 {[%clk 0:01:28.6]} 17... Bxc3
{[%clk 0:01:54.7]} 18. Bxc3 {[%clk 0:01:29.5]} 18... d5 {[%clk 0:01:49.4]} 19.
Rae1 {[%clk 0:01:26.9]} 19... e6 {[%clk 0:01:46.4]} 20. f4 {[%clk 0:01:26.1]}
20... Kd7 {[%clk 0:01:45.7]} 21. exd5 {[%clk 0:01:22.9]} 21... cxd5 {[%clk
0:01:41]} 22. Rhf1 {[%clk 0:01:20.3]} 22... f5 {[%clk 0:01:28.8]} 23. Be5 {[%clk
0:01:05.4]} 23... h5 {[%clk 0:01:17.3]} 24. b3 {[%clk 0:00:58.4]} 24... Nxe5+
{[%clk 0:01:07.2]} 25. Rxe5 {[%clk 0:00:59.3]} 25... Rgc8 {[%clk 0:01:06.3]} 26.
Rf2 {[%clk 0:00:50.4]} 26... Rc6 {[%clk 0:01:05.5]} 27. Rc2 {[%clk 0:00:47.4]}
27... Rac8 {[%clk 0:01:00.7]} 28. Rxc6 {[%clk 0:00:47.1]} 28... Rxc6 {[%clk
0:01:01.6]} 29. Re2 {[%clk 0:00:47]} 29... Kd6 {[%clk 0:01:01.6]} 30. Rc2 {[%clk
0:00:43.8]} 30... Rxc2 {[%clk 0:00:49.2]} 31. Kxc2 {[%clk 0:00:43.9]} 31... e5
{[%clk 0:00:49.2]} 32. fxe5+ {[%clk 0:00:43.1]} 32... Kxe5 {[%clk 0:00:50.1]}
33. Kd3 {[%clk 0:00:43.3]} 33... f4 {[%clk 0:00:40.5]} 34. gxf4+ {[%clk
0:00:37.1]} 34... Kxf4 {[%clk 0:00:40.3]} 35. b4 {[%clk 0:00:36.8]} 35... Kg4
{[%clk 0:00:36.7]} 36. b5 {[%clk 0:00:36.8]} 36... Kh3 {[%clk 0:00:36.5]} 37. a4
{[%clk 0:00:37.4]} 37... Kxh2 {[%clk 0:00:36.7]} 38. a5 {[%clk 0:00:38.1]} 38...
Kg2 {[%clk 0:00:27.2]} 39. b6 {[%clk 0:00:38.2]} 39... axb6 {[%clk 0:00:27.1]}
40. axb6 {[%clk 0:00:38.4]} 40... h4 {[%clk 0:00:27.3]} 41. b7 {[%clk
0:00:38.8]} 41... h3 {[%clk 0:00:27.8]} 42. b8=Q {[%clk 0:00:39.2]} 42... h2
{[%clk 0:00:28.1]} 43. Qg8+ {[%clk 0:00:37.7]} 43... Kf2 {[%clk 0:00:24.6]} 44.
Qh7 {[%clk 0:00:37.6]} 44... Kg2 {[%clk 0:00:24.1]} 45. Qg6+ {[%clk 0:00:37.8]}
45... Kf2 {[%clk 0:00:24.1]} 46. Qh5 {[%clk 0:00:38]} 46... Kg2 {[%clk
0:00:24.1]} 47. Qg4+ {[%clk 0:00:38.2]} 47... Kf2 {[%clk 0:00:23]} 48. Qh3
{[%clk 0:00:37.3]} 48... Kg1 {[%clk 0:00:22.8]} 49. Qg3+ {[%clk 0:00:37.7]}
49... Kh1 {[%clk 0:00:22.9]} 50. Ke2 {[%clk 0:00:37.8]} 1-0